bitfinex/quotes_ETHUSD_20250725
["timestamp","ask_amount","ask_price","bid_price","bid_amount"]
[1753413669181,0.4409,3627.4,3626.7,2.75729433]
[1753413669379,0.4976,3627.3,3626.8,4.547]
[1753413669679,0.002,3627.6,3626.8,4.547]
[1753413669680,0.002,3626.9,3626.8,5.38695575]
[1753413669837,0.002,3626.9,3626.8,8.14417176]
[1753413670036,0.002,3626.9,3626.8,11.69417176]
[1753413670263,0.002,3626.9,3626.8,7.14717176]
[1753413670465,0.002,3626.9,3626.8,11.69417176]
[1753413671178,0.002,3626.9,3626.8,11.85307176]
[1753413671378,0.002,3626.9,3626.8,12.71857176]
[1753413671585,0.002,3626.9,3626.8,7.90527176]
[1753413671883,0.002,3626.9,3626.8,12.45127176]
[1753413672090,0.002,3626.9,3626.8,4.546]
[1753413672786,0.002,3626.9,3626.8,7.30325157]
[1753413673183,0.002,3626.9,3626.5,0.73116]
[1753413673494,0.4976,3626.8,3626.6,4.546]
[1753413674077,0.002,3626.9,3626.4,3.0]
[1753413674287,0.9385,3626.7,3626.5,4.545]
[1753413674484,0.002,3626.9,3626.5,4.545]
[1753413674647,0.9385,3626.6,3626.5,4.545]
[1753413674859,0.9385,3626.6,3625.2,0.41000195]
[1753413674860,1.7624,3626.6,3625.2,0.41000195]
[1753413675060,3.25508895,3626.5,3625.8,3.0]
[1753413675399,2.75725975,3626.8,3626.0,2.75780331]
[1753413675400,0.9385,3626.8,3626.0,2.75780331]
[1753413675713,0.002,3626.9,3626.7,2.75732759]
[1753413675847,0.002,3626.9,3626.8,10.87982408]
[1753413676041,0.002,3626.9,3626.8,7.28615157]
[1753413676300,0.002,3626.9,3626.8,11.93955157]
[1753413676447,0.002,3626.9,3626.8,14.37134333]
[1753413677346,0.002,3626.9,3626.8,9.27634333]
[1753413677658,0.002,3626.9,3626.7,9.9293212]
[1753413677859,0.002,3626.9,3626.8,7.43985157]
[1753413678195,0.002,3626.9,3626.8,7.98985157]
[1753413678752,0.002,3626.9,3626.8,10.98985157]
[1753413679351,0.002,3626.9,3626.8,11.14875157]
[1753413679686,0.002,3626.9,3626.8,13.92850679]
[1753413679988,0.002,3626.9,3626.8,9.38350679]
[1753413680198,0.002,3626.9,3626.8,13.10750679]
[1753413680376,0.002,3626.9,3626.8,10.43885157]
[1753413681274,0.002,3626.9,3626.8,7.6816]
[1753413681498,0.002,3626.9,3626.8,10.43885157]
[1753413683102,0.4602,3626.9,3626.8,7.6816]
[1753413684605,0.8996,3626.9,3626.8,0.1376]
[1753413684791,2.75733593,3626.7,3626.1,7.171]
[1753413685006,0.8976,3626.6,3626.2,7.30068373]
[1753413685215,0.8976,3626.6,3626.4,0.1376]
[1753413685413,0.9383,3626.9,3626.5,4.543]
[1753413685414,0.8007,3626.9,3626.5,4.543]
[1753413685615,0.4582,3626.8,3626.5,4.543]
[1753413686323,0.8976,3626.7,3626.5,4.543]
[1753413686526,0.8976,3626.6,3626.5,4.543]
[1753413686926,0.8976,3626.6,3626.4,0.1376]
[1753413687097,0.8007,3626.9,3626.1,7.171]
[1753413687098,0.8976,3626.5,3626.1,7.171]
[1753413687305,0.8976,3626.4,3626.2,4.543]
[1753413687491,0.8976,3626.3,3626.2,4.543]
[1753413688000,0.8976,3626.3,3626.2,7.30070779]
[1753413688215,0.8976,3626.7,3626.2,6.27972356]
[1753413688403,0.002,3626.9,3626.6,0.1376]
[1753413688602,0.002,3626.9,3626.7,4.543]
[1753413689024,0.4582,3626.8,3626.7,4.543]
[1753413689432,0.8976,3626.8,3626.7,4.543]
[1753413689643,0.8976,3626.8,3626.6,0.1376]
[1753413689824,0.4582,3626.7,3626.6,0.1376]
[1753413690128,0.4582,3626.7,3626.6,7.43800362]
[1753413690327,0.002,3626.9,3626.6,4.6806]
[1753413690541,0.002,3626.9,3626.8,2.75725157]
[1753413690838,0.002,3626.9,3626.8,7.30025157]
[1753413691196,0.002,3626.9,3626.8,7.43785157]
[1753413691392,0.002,3626.9,3626.8,9.00737436]
[1753413691642,0.002,3626.9,3626.8,12.83117436]
[1753413692735,0.002,3626.9,3626.8,7.73817436]
[1753413692888,0.002,3626.9,3626.8,10.43685157]
[1753413693095,0.4602,3626.9,3626.8,7.6796]
[1753413693327,0.8996,3626.9,3626.8,10.43685157]
[1753413694044,0.8996,3626.9,3626.8,4.6796]
[1753413694195,0.8996,3626.9,3626.8,4.6786]
[1753413694714,0.4602,3626.9,3626.8,7.43585157]
[1753413694924,0.002,3626.9,3626.8,7.43585157]
[1753413695695,0.002,3626.9,3626.8,11.4551765]
[1753413696238,0.002,3626.9,3626.8,12.0051765]
[1753413698947,0.002,3626.9,3626.8,7.6786]
[1753413699258,0.8996,3626.9,3626.8,7.6786]
[1753413699660,0.4602,3626.9,3626.8,7.6786]
[1753413699864,0.4602,3626.9,3626.8,10.43585157]
[1753413700061,0.8996,3626.9,3626.8,0.1376]
[1753413700422,0.4602,3626.9,3626.8,4.6776]
[1753413700627,0.002,3626.9,3626.8,8.20261157]
[1753413700827,0.002,3626.9,3626.8,9.57401157]
[1753413701066,0.002,3626.9,3626.8,12.57401157]
[1753413701363,0.002,3626.9,3626.8,12.84131157]
[1753413701564,1e-08,3626.9,3626.8,12.84131157]
[1753413702240,1e-08,3627.3,3627.2,3.3069475]
[1753413702439,1e-08,3627.9,3627.8,2.75649153]
[1753413702670,1e-08,3627.9,3627.8,14.63165644]
[1753413702868,0.002,3628.4,3627.8,14.63165644]
[1753413702869,0.002,3628.4,3627.9,3.30641555]
[1753413703171,0.002,3628.4,3628.3,6.30611167]
[1753413703463,0.002,3628.4,3628.3,10.98271167]
[1753413703765,0.002,3628.4,3628.3,12.71166723]
[1753413704066,0.4394,3629.4,3628.3,12.71166723]
[1753413704067,0.1376,3629.6,3629.5,2.75520044]
[1753413704266,0.8976,3629.6,3629.5,4.539]
[1753413704465,0.8976,3629.6,3629.5,7.29420044]
[1753413704971,0.7765,3630.6,3629.8,2.75497272]
[1753413705267,0.4582,3630.1,3629.8,7.29297272]
[1753413705456,0.04,3630.9,3629.8,12.61227985]
[1753413705654,0.4582,3630.8,3630.0,3.55]
[1753413705855,0.4582,3630.8,3629.8,4.76930713]
[1753413705856,0.4394,3630.7,3630.3,2.7545267]
[1753413706067,0.4394,3630.6,3630.4,4.538]
[1753413706288,0.8976,3630.6,3630.4,4.538]
[1753413706467,0.4582,3630.5,3630.4,4.538]
[1753413706785,0.9517,3630.5,3630.4,4.538]
[1753413707563,0.9517,3630.5,3630.4,7.2925174]
[1753413707759,0.4822,3630.5,3630.4,7.2925174]
[1753413707948,0.5095,3630.9,3630.5,2.75440584]
[1753413708155,0.9517,3630.8,3630.6,4.536]
[1753413708349,0.9517,3630.7,3630.6,4.536]
[1753413708549,0.4822,3630.7,3630.6,4.536]
[1753413708860,0.9517,3630.7,3630.6,7.29036566]
[1753413709065,0.9517,3630.7,3630.6,4.536]
[1753413709252,0.9517,3630.7,3630.6,7.29036566]
[1753413710042,0.04,3630.9,3630.7,2.75426392]
[1753413710244,0.5222,3630.9,3630.8,4.535]
[1753413710481,0.5222,3630.9,3630.8,7.28921394]
[1753413710770,0.9917,3630.9,3630.8,7.535]
[1753413710933,0.9917,3630.9,3630.8,4.535]
[1753413711134,0.9917,3630.9,3630.1,2.75471781]
[1753413711338,0.5095,3630.9,3630.3,2.75453076]
[1753413711574,0.4822,3630.8,3630.4,4.534]
[1753413711768,0.4822,3630.7,3630.4,7.28849346]
[1753413712073,0.04,3630.9,3630.4,4.534]
[1753413712376,0.5222,3630.9,3630.7,2.7542417]
[1753413712572,0.5222,3630.9,3630.8,7.28821394]
[1753413713355,0.5222,3630.9,3630.8,4.534]
[1753413713538,0.04,3630.9,3630.8,4.534]
[1753413713739,0.04,3630.9,3630.8,7.28821394]
[1753413713977,0.04,3630.9,3630.8,4.534]
[1753413714157,0.9917,3630.9,3630.8,4.6716]
[1753413714363,1.8151,3630.9,3630.8,0.1376]
[1753413714566,4.70683809,3630.9,3630.8,4.533]
[1753413714860,1.9527,3630.9,3630.8,4.533]
[1753413715066,4.70683809,3630.9,3630.8,4.533]
[1753413716580,1.9527,3630.9,3630.8,4.533]
[1753413717283,1.1293,3630.9,3630.8,4.533]
[1753413718048,0.7989,3632.6,3630.8,6.02944329]
[1753413718242,0.7989,3632.6,3631.2,2.89150749]
[1753413718243,1.0893,3631.8,3631.2,2.89150749]
[1753413718457,0.7562,3631.7,3631.3,4.532]
[1753413718662,0.9517,3631.6,3631.3,4.532]
[1753413718881,0.7562,3631.7,3631.3,4.532]
[1753413719084,0.9517,3631.5,3631.3,4.532]
[1753413719288,0.7562,3631.7,3631.4,2.75375888]
[1753413719483,0.7562,3632.2,3631.5,2.75368305]
[1753413719683,0.1376,3632.1,3631.6,4.6686]
[1753413719887,0.4822,3631.8,3631.7,4.531]
[1753413720090,0.4822,3631.8,3631.7,7.2845314]
[1753413720287,0.04,3631.9,3631.8,2.75345558]
[1753413720788,0.04,3631.9,3631.8,7.69179625]
[1753413721084,1e-08,3632.9,3632.6,2.75279518]
[1753413721292,0.4822,3632.8,3632.7,7.28270392]
[1753413721652,0.9517,3632.8,3632.7,0.1376]
[1753413721850,0.9517,3632.8,3632.7,4.53]
[1753413722095,0.9517,3632.8,3632.7,4.529]
[1753413723509,0.4822,3632.8,3632.7,7.28177341]
[1753413723721,1e-08,3632.9,3632.8,2.75269764]
[1753413723899,1e-08,3632.9,3632.7,7.4193672]
[1753413724205,0.4822,3632.8,3632.7,4.6666]
[1753413724708,1e-08,3632.9,3632.8,2.75269764]
[1753413726099,1e-08,3632.9,3632.8,7.28069764]
[1753413727012,0.95170001,3632.9,3632.8,4.528]
[1753413727531,0.95170001,3632.9,3632.8,4.527]
[1753413729415,0.48220001,3632.9,3632.8,4.527]
[1753413729751,0.95170001,3632.9,3632.8,4.6646]
[1753413730444,1e-08,3632.9,3632.8,8.15904193]
[1753413731940,1e-08,3632.9,3632.8,7.41729764]
[1753413732500,1e-08,3632.9,3632.8,8.24019764]
[1753413732705,1e-08,3632.9,3632.8,8.79019764]
[1753413733540,1e-08,3632.9,3632.8,0.9605]
[1753413733840,0.48220001,3632.9,3632.8,4.6626]
[1753413734934,0.95170001,3632.9,3632.8,4.6626]
[1753413736003,1.30540001,3632.9,3632.8,0.1376]
[1753413736210,1.30540001,3632.9,3632.8,4.6616]
[1753413736422,0.48420001,3632.9,3632.8,4.6616]
[1753413736943,0.91980001,3632.9,3632.8,4.6616]
[1753413737442,0.91980001,3632.9,3632.8,4.523]
[1753413737765,0.002,3633.7,3632.8,8.52345764]
[1753413737908,0.002,3633.7,3632.9,3.0]
[1753413738109,0.4556,3633.6,3633.3,2.75231323]
[1753413738310,0.4556,3633.5,3633.4,4.523]
[1753413738535,0.002,3633.7,3633.4,7.27524307]
[1753413738811,0.4556,3633.6,3633.4,7.27522376]
[1753413739029,0.4356,3633.6,3633.5,2.75216733]
[1753413739350,0.002,3633.7,3633.6,2.75209158]
[1753413739732,0.7994,3633.6,3633.2,2.75239439]
[1753413739921,0.8912,3633.5,3633.3,4.522]
[1753413740121,0.8912,3633.4,3633.3,4.522]
[1753413740339,0.002,3633.7,3633.3,4.522]
[1753413740540,0.8912,3633.6,3633.3,4.522]
[1753413740812,0.8912,3633.5,3633.3,4.522]
[1753413741014,0.4356,3633.5,3633.3,4.522]
[1753413741228,0.002,3633.7,3633.3,4.522]
[1753413741432,0.4556,3633.6,3633.3,4.522]
[1753413741633,0.8912,3633.6,3633.3,7.27431271]
[1753413741833,0.002,3633.7,3633.4,2.75222556]
[1753413742040,0.002,3633.7,3633.4,0.02752243]
[1753413742246,0.002,3633.7,3633.6,2.75209158]
[1753413742598,0.002,3633.7,3633.6,7.27309158]
[1753413744063,0.002,3633.7,3633.6,10.82309158]
[1753413744269,1e-08,3633.7,3633.6,13.31646505]
[1753413744797,0.002,3634.4,3634.3,2.75156151]
[1753413744945,0.002,3634.4,3634.3,10.29907712]
[1753413745147,0.002,3634.4,3634.3,11.60136151]
[1753413745763,0.002,3634.4,3634.3,11.05136151]
[1753413745979,0.002,3634.4,3634.3,3.0]
[1753413746166,0.002,3634.4,3634.3,10.27156151]
[1753413746363,0.002,3634.4,3634.3,11.57388889]
[1753413747074,0.002,3634.4,3634.3,12.12388889]
[1753413747808,0.002,3634.4,3634.3,12.52878889]
[1753413747978,0.002,3634.4,3634.3,13.29818889]
[1753413748176,1e-08,3634.4,3634.3,13.29818889]
[1753413748704,1e-08,3634.4,3634.3,13.02988889]
[1753413748873,1e-08,3634.4,3634.3,13.29718889]
[1753413750863,1e-08,3634.4,3634.3,13.02988889]
[1753413751107,1e-08,3634.4,3634.3,13.29718889]
[1753413751701,0.04,3635.9,3635.8,2.75042631]
[1753413751999,0.04,3635.9,3635.8,7.81742631]
[1753413752310,0.04,3635.9,3635.8,9.83562081]
[1753413752702,0.042,3635.9,3635.8,12.94402081]
[1753413753080,0.042,3635.9,3635.8,7.76862081]
[1753413753279,0.042,3635.9,3635.8,7.26182631]
[1753413753482,0.042,3635.9,3635.8,3.1376]
[1753413753833,0.9332,3635.9,3635.8,4.516]
[1753413754307,0.9332,3635.9,3635.7,0.1376]
[1753413754510,0.042,3635.9,3635.7,0.1376]
[1753413754685,0.042,3635.9,3635.8,4.516]
[1753413755194,0.042,3635.9,3635.8,7.26642631]
[1753413756105,0.042,3635.9,3635.8,4.516]
[1753413757728,0.9332,3635.9,3635.8,4.515]
[1753413758084,0.9332,3635.9,3635.0,7.158]
[1753413758085,0.7855,3635.8,3635.0,7.158]
[1753413758288,0.7855,3635.8,3635.1,4.514]
[1753413758289,2.75065834,3635.5,3635.1,4.514]
[1753413758485,0.1376,3635.3,3635.1,4.514]
[1753413758711,0.8912,3635.2,3635.1,4.514]
[1753413758884,0.91885656,3635.2,3633.7,7.156]
[1753413759094,0.7562,3635.0,3633.8,4.514]
[1753413759327,2.75166586,3634.2,3633.9,4.514]
[1753413759522,0.8912,3634.1,3633.9,4.514]
[1753413759713,0.4556,3634.0,3633.9,4.514]
[1753413760230,0.4556,3634.4,3633.9,4.514]
[1753413760429,0.4556,3634.8,3633.9,4.96566378]
[1753413760725,3.18687938,3634.7,3633.9,4.514]
[1753413760910,2.7514636,3634.5,3633.9,4.514]
[1753413761112,0.8912,3634.4,3633.9,4.514]
[1753413761430,0.8912,3634.3,3633.9,4.514]
[1753413761631,0.8912,3634.2,3633.9,4.514]
[1753413761832,1.6683,3634.1,3633.9,4.514]
[1753413761994,0.8912,3634.0,3633.9,4.514]
[1753413762992,3.64298866,3634.0,3633.9,4.514]
[1753413763192,3.64298866,3634.0,3633.1,0.04]
[1753413763193,2.75198605,3633.8,3633.1,0.04]
[1753413763525,0.8912,3633.9,3633.2,4.514]
[1753413763691,0.8912,3633.7,3633.2,4.514]
[1753413763887,0.8912,3633.6,3633.2,4.514]
[1753413764093,0.8912,3633.5,3633.2,4.514]
[1753413764387,0.8912,3633.4,3633.3,2.75231882]
[1753413764592,0.8912,3633.4,3633.2,4.514]
[1753413764895,0.4556,3633.3,3633.2,7.26639458]
[1753413765593,0.4556,3633.3,3633.2,2.75239458]
[1753413765799,0.8912,3633.3,3633.2,4.513]
[1753413766698,0.8912,3633.3,3633.1,0.04]
[1753413766699,3.50389458,3633.2,3633.1,0.04]
[1753413766896,3.50389458,3633.2,3632.0,0.001]
[1753413766897,0.7515,3633.1,3632.0,0.001]
[1753413767155,0.8983,3633.0,3632.0,0.001]
[1753413767293,0.7515,3632.3,3632.0,0.001]
[1753413767493,2.75315235,3632.2,3632.0,0.001]
[1753413767706,0.02765656,3632.2,3632.1,4.554]
[1753413768044,0.8983,3632.6,3632.1,5.0095]
[1753413768341,0.4672,3632.5,3632.1,4.554]
[1753413768538,0.4672,3632.4,3632.2,2.75315235]
[1753413768939,2.75271664,3632.8,3632.3,4.6506]
[1753413769149,0.1376,3632.8,3632.3,4.6506]
[1753413769309,2.75278305,3632.7,3632.3,4.6506]
[1753413769510,0.8983,3632.6,3632.3,4.6506]
[1753413769708,0.8983,3632.5,3632.3,4.6506]
[1753413770020,0.8983,3632.4,3632.3,4.6506]
[1753413770435,0.4672,3632.4,3632.3,4.6506]
[1753413770809,0.5687,3632.8,3632.7,2.75277341]
[1753413770810,0.4311,3632.8,3632.7,2.75277341]
[1753413771009,0.1376,3633.0,3632.8,2.75263965]
[1753413771249,0.4311,3633.2,3632.8,2.75269764]
[1753413771543,0.1376,3633.7,3632.9,0.1376]
[1753413771841,2.88937057,3634.1,3633.1,2.89001464]
[1753413772020,0.4672,3633.6,3633.2,4.6506]
[1753413772217,0.4311,3633.5,3633.3,4.513]
[1753413772429,0.8983,3633.4,3633.3,4.513]
[1753413772637,0.8983,3633.4,3632.3,3.93858519]
[1753413772638,0.8983,3633.4,3633.0,4.513]
[1753413772841,2.7798388,3633.5,3633.0,4.513]
[1753413772842,2.89007034,3633.1,3633.0,4.513]
[1753413773042,3.57894971,3632.8,3632.3,3.0]
[1753413773352,3.67878711,3632.7,3632.4,4.513]
[1753413773558,3.65120209,3632.6,3632.4,4.513]
[1753413773764,0.8983,3632.5,3632.4,4.513]
[1753413774055,3.78890004,3632.5,3632.4,4.513]
[1753413774617,3.78890004,3632.5,3632.1,4.553]
[1753413774851,3.65131112,3632.4,3632.1,4.553]
[1753413775058,2.75301112,3632.4,3632.1,4.553]
[1753413775257,3.65139034,3632.3,3632.1,4.553]
[1753413775457,3.65145235,3632.2,3632.1,0.04]
[1753413775659,4.61975235,3632.2,3632.1,0.04]
[1753413777173,7.61975235,3632.2,3632.1,0.04]
[1753413778956,7.61975235,3632.2,3632.1,0.041]
[1753413779143,7.15255235,3632.2,3632.1,0.041]
[1753413779344,7.61975235,3632.2,3632.1,0.041]
[1753413780655,0.4672,3632.2,3632.1,0.041]
[1753413780859,0.4311,3632.6,3632.1,0.041]
[1753413780860,0.1376,3632.4,3632.1,2.79422816]
[1753413781160,0.5687,3632.6,3632.1,0.041]
[1753413781322,0.4672,3632.9,3632.2,0.80593152]
[1753413781519,0.4672,3632.9,3632.5,0.1376]
[1753413781717,0.7894,3633.1,3632.1,0.041]
[1753413781718,2.75291847,3632.6,3632.1,0.041]
[1753413782024,2.75314723,3632.3,3632.1,0.041]
[1753413782222,0.4672,3632.6,3632.1,0.041]
[1753413782563,0.4672,3632.5,3632.3,0.1376]
[1753413782937,0.4311,3632.6,3632.3,0.1376]
[1753413783134,0.4672,3632.4,3632.3,0.1376]
[1753413783549,0.8983,3632.4,3632.1,0.041]
[1753413783859,0.8983,3632.3,3632.1,0.041]
[1753413784268,0.4672,3632.2,3632.1,0.041]
[1753413784577,0.4672,3632.3,3632.1,0.041]
[1753413784724,0.4672,3632.2,3632.1,0.041]
[1753413785194,0.8983,3632.2,3632.1,0.041]
[1753413785671,0.4672,3632.2,3632.1,0.041]
[1753413786328,3.65145235,3632.2,3632.1,0.041]
[1753413786521,4.62080891,3632.2,3632.1,0.041]
[1753413786751,4.59315235,3632.2,3632.1,0.041]
[1753413789192,4.12595235,3632.2,3632.1,0.041]
[1753413789381,4.59315235,3632.2,3632.1,0.041]
[1753413790625,7.59315235,3632.2,3632.1,1e-08]
[1753413791469,12.10415235,3632.2,3632.1,1e-08]
[1753413792268,2.75375888,3631.4,3631.3,0.001]
[1753413792464,3.57315888,3631.4,3631.3,0.001]
[1753413792773,0.4311,3631.6,3631.3,0.001]
[1753413792991,2.7536989,3631.5,3631.3,0.001]
[1753413793193,3.78952996,3631.6,3631.3,0.001]
[1753413793379,0.4672,3631.5,3631.3,0.001]
[1753413793706,0.1376,3631.6,3631.3,0.001]
[1753413793878,2.89122033,3631.6,3631.3,0.001]
[1753413794075,3.35842033,3631.6,3631.3,0.001]
[1753413794285,3.22095222,3631.5,3631.3,0.001]
[1753413794475,2.75375888,3631.4,3631.3,0.001]
[1753413794683,3.22090989,3631.5,3631.3,0.001]
[1753413795301,2.75375888,3631.4,3631.3,0.001]
[1753413795510,0.4672,3631.5,3631.3,0.001]
[1753413795803,2.75368768,3631.5,3631.3,0.001]
[1753413796176,2.89123066,3631.6,3631.3,0.001]
[1753413796581,0.1376,3631.6,3631.3,0.001]
[1753413796769,0.6048,3632.0,3631.3,0.7812]
[1753413796969,2.75339002,3631.9,3631.5,0.1376]
[1753413797382,3.20389002,3631.9,3631.5,0.1376]
[1753413797701,0.4505,3631.9,3631.5,0.1376]
[1753413797919,2.7534694,3631.8,3631.5,0.1376]
[1753413798128,2.75360722,3631.6,3631.5,0.1376]
[1753413798332,2.75360722,3631.6,3631.3,0.7812]
[1753413798649,0.1376,3631.7,3631.3,0.7812]
[1753413798922,2.75361005,3631.6,3631.3,0.7812]
[1753413799222,3.20423525,3631.5,3631.3,0.001]
[1753413799427,2.75375888,3631.4,3631.3,0.001]
[1753413799609,3.66765888,3631.4,3631.3,0.001]
[1753413799784,3.80525888,3631.4,3631.3,0.001]
[1753413799984,4.56385888,3631.4,3631.3,0.001]
[1753413801019,4.59151544,3631.4,3631.3,0.001]
[1753413802019,7.59151544,3631.4,3631.3,0.001]
[1753413802218,7.56385888,3631.4,3631.3,0.001]
[1753413805336,2.75391055,3631.2,3631.1,0.04]
[1753413805653,10.42616711,3631.2,3631.1,0.04]
[1753413805803,5.75398639,3631.1,3631.0,0.001]
[1753413805998,7.42698639,3631.1,3631.0,0.001]
[1753413806642,7.42698639,3631.1,3631.0,1e-08]
[1753413809833,7.97698639,3631.1,3631.0,1e-08]
[1753413810933,0.7952,3630.5,3629.8,0.001]
[1753413811139,2.89226916,3630.2,3629.8,0.001]
[1753413811308,7.42592572,3630.2,3629.8,0.001]
[1753413811509,8.31216916,3630.2,3629.8,0.001]
[1753413811739,11.31216916,3630.2,3629.8,0.001]
[1753413812744,2.75489682,3629.9,3629.8,0.001]
[1753413813044,10.42615338,3629.9,3629.8,0.001]
[1753413813207,11.31239682,3629.9,3629.8,0.001]
[1753413815006,11.31139682,3629.9,3629.8,0.001]
[1753413815851,5.89249682,3629.9,3629.8,0.001]
[1753413816012,10.39649682,3629.9,3629.8,0.001]
[1753413816349,2.75447971,3630.5,3629.8,0.001]
[1753413816350,0.4505,3630.7,3629.8,0.001]
[1753413816649,0.1376,3630.5,3630.3,2.75452102]
[1753413816812,0.4634,3631.2,3629.8,0.3083]
[1753413816813,2.75396524,3631.2,3630.5,0.805]
[1753413817167,0.1376,3630.6,3630.1,0.805]
[1753413817326,2.89201892,3630.6,3630.1,0.805]
[1753413817662,2.75489682,3629.9,3629.8,0.001]
[1753413818040,2.78249033,3630.0,3629.8,0.001]
[1753413818248,2.89228162,3630.2,3629.8,0.001]
[1753413818660,0.1376,3630.2,3629.8,0.001]
[1753413819086,2.89228886,3630.2,3629.8,0.001]
[1753413819283,0.1376,3630.3,3629.8,0.1386]
[1753413819488,0.7955,3631.1,3629.8,0.1386]
[1753413819489,0.9139,3631.2,3630.0,0.8318]
[1753413819687,0.1376,3631.0,3630.2,0.1376]
[1753413819846,0.1376,3631.0,3630.5,0.1376]
[1753413820176,7.25699572,3631.1,3630.6,0.8318]
[1753413820386,0.1376,3631.1,3630.6,0.8318]
[1753413820585,3.0,3631.7,3630.6,0.8318]
[1753413820586,0.4905,3631.9,3630.9,2.75406826]
[1753413820758,0.1376,3631.6,3631.1,0.8318]
[1753413820960,0.1376,3631.6,3631.1,0.9402]
[1753413821282,2.89152948,3631.2,3630.8,0.7618]
[1753413821491,0.1376,3631.2,3630.8,0.7618]
[1753413821649,0.5881,3631.2,3630.8,0.7618]
[1753413821849,0.4505,3631.1,3630.8,0.7618]
[1753413822049,0.1376,3631.2,3630.8,0.7618]
[1753413822050,2.89157661,3631.2,3630.8,0.7618]
[1753413822252,0.1376,3631.2,3630.8,0.7618]
[1753413822445,0.1376,3631.2,3630.8,1.15791415]
[1753413822694,2.89152959,3631.2,3630.8,1.15791415]
[1753413822916,2.75405739,3631.1,3630.8,0.7618]
[1753413823086,2.89152382,3631.2,3630.8,0.7618]
[1753413823604,0.1376,3631.2,3630.8,0.7618]
[1753413823807,2.89151164,3631.2,3630.8,0.7618]
[1753413824104,2.89153087,3631.2,3630.8,0.7628]
[1753413824408,2.75401011,3631.1,3630.8,0.7628]
[1753413824605,2.75413809,3630.9,3630.8,0.7628]
[1753413824806,0.1376,3631.2,3630.8,0.7628]
[1753413825194,4.501,3631.7,3630.9,0.3073]
[1753413825401,2.89126885,3631.6,3631.0,0.1376]
[1753413825609,2.75383873,3631.3,3631.0,0.1376]
[1753413825783,2.75378331,3631.4,3631.0,0.1376]
[1753413825983,2.7538426,3631.3,3631.0,0.1376]
[1753413826407,2.75377382,3631.4,3631.0,0.1376]
[1753413826603,0.02765656,3631.5,3631.0,0.1376]
[1753413826812,0.1376,3631.6,3631.0,0.1376]
[1753413826813,0.4505,3631.4,3631.0,0.1376]
[1753413827123,3.204266,3631.4,3631.0,0.1376]
[1753413827423,2.75385394,3631.3,3631.0,0.1376]
[1753413827730,2.75398639,3631.1,3631.0,0.1376]
[1753413827922,1.0637,3631.2,3630.8,0.7628]
[1753413828087,0.02765656,3631.1,3630.8,0.7628]
[1753413828293,0.51935656,3631.1,3630.8,0.7628]
[1753413828624,2.75409768,3631.0,3630.8,0.7628]
[1753413829164,0.1376,3631.2,3630.8,0.7628]
[1753413829340,2.891514,3631.2,3630.8,0.7628]
[1753413829895,2.75398663,3631.1,3630.8,0.7628]
[1753413830088,0.6293,3631.2,3630.8,0.7628]
[1753413830328,2.75399667,3631.1,3630.8,0.7628]
[1753413830829,2.75409056,3631.0,3630.8,0.7628]
[1753413830990,2.75413809,3630.9,3630.8,0.7628]
[1753413831332,2.75413809,3630.9,3630.8,0.001]
[1753413831493,3.68023809,3630.9,3630.8,0.001]
[1753413831693,3.70789465,3630.9,3630.8,0.001]
[1753413833415,4.51239465,3630.9,3630.8,0.001]
[1753413833764,12.00939465,3630.9,3630.8,0.001]
[1753413833915,11.98173809,3630.9,3630.8,1e-08]
[1753413834861,12.53173809,3630.9,3630.8,1e-08]
[1753413836919,12.53073809,3630.9,3630.8,1e-08]
[1753413837142,11.98073809,3630.9,3630.8,1e-08]
[1753413837935,11.97973809,3630.9,3630.8,1e-08]
[1753413840654,2.75413809,3630.9,3630.8,1e-08]
[1753413841709,2.89173809,3630.9,3630.8,1e-08]
[1753413841897,3.38343809,3630.9,3630.8,1e-08]
[1753413842244,3.41109465,3630.9,3630.8,1e-08]
[1753413842463,2.89173809,3630.9,3630.8,1e-08]
[1753413844388,2.75404243,3631.1,3630.8,0.82220001]
[1753413844598,2.75413241,3631.0,3630.8,0.82220001]
[1753413844798,2.75413809,3630.9,3630.8,0.82220001]
[1753413845228,2.78179465,3630.9,3630.8,0.82220001]
[1753413845383,2.89173809,3630.9,3630.8,0.82220001]
[1753413846396,0.1376,3630.9,3630.8,0.82220001]
[1753413846581,2.89173809,3630.9,3630.8,0.82220001]
[1753413847119,4.492,3631.3,3630.8,0.82220001]
[1753413847410,2.75413809,3630.9,3630.8,0.82220001]
[1753413848205,0.1376,3631.1,3630.8,0.82220001]
[1753413848370,2.75413809,3630.9,3630.8,0.82220001]
[1753413849200,2.89160246,3631.1,3630.8,0.82220001]
[1753413849571,0.1376,3631.1,3630.8,0.82220001]
[1753413849902,2.75413809,3630.9,3630.8,0.82220001]
[1753413850061,2.75408805,3631.0,3630.8,0.82220001]
[1753413850265,2.89160944,3631.1,3630.8,0.82220001]
[1753413850466,2.89161492,3631.1,3630.8,0.82220001]
[1753413850764,2.75401492,3631.1,3630.8,0.82220001]
[1753413851165,2.89153626,3631.2,3630.8,0.82220001]
[1753413851467,2.89151739,3631.2,3630.8,0.82220001]
[1753413851704,2.75399733,3631.1,3630.8,0.82220001]
[1753413851999,0.1376,3631.2,3630.8,0.82220001]
[1753413852200,2.75404106,3631.1,3630.8,0.82220001]
[1753413852365,2.89152282,3631.2,3630.8,0.82220001]
[1753413852565,2.75399701,3631.1,3630.8,0.82220001]